fUST/lending_fUST_20250619
["ID","MTS","AMOUNT","RATE_DAILY","PERIOD"]
[366521553,1750301432890,-460.0,0.00021917,6]
[366521554,1750301432899,-402.97492478,0.00021917,6]
[366521555,1750301432909,-467.11237917,0.00021917,6]
[366521556,1750301432919,-460.0,0.00021917,6]
[366521557,1750301432928,-454.82861567,0.00021917,6]
[366521558,1750301432938,-316.14903048,0.00021917,6]
[366521559,1750301432946,-354.97,0.00021917,6]
[366521560,1750301432957,-460.0,0.00021917,6]
[366521561,1750301432967,-460.0,0.00021917,6]
[366521562,1750301432977,-382.2360903,0.00021917,6]
[366521563,1750301432986,-460.0,0.00021917,6]
[366521564,1750301432995,-460.0,0.00021917,6]
[366521565,1750301433006,-500.0,0.00021917,6]
[366521566,1750301433015,-460.0,0.00021917,6]
[366521567,1750301433025,-200.0,0.00021917,6]
[366521568,1750301433035,-460.0,0.00021917,6]
[366521569,1750301433044,-460.0,0.00021917,6]
[366521570,1750301433054,-359.25070781,0.00021917,6]
[366521571,1750301433063,-267.59428658,0.00021917,6]
[366521572,1750301433075,-170.8691648,0.00021917,6]
[366521573,1750301433084,-460.0,0.00021917,6]
[366521574,1750301433094,-469.5720956,0.00021917,6]
[366521575,1750301433104,-460.0,0.00021917,6]
[366521576,1750301433114,-470.91571987,0.00021917,6]
[366521577,1750301433124,-460.0,0.00021917,6]
[366521578,1750301433134,-393.75915797,0.00021917,6]
[366521579,1750301433143,-466.91249898,0.00021917,6]
[366521580,1750301433154,-460.0,0.00021917,6]
[366521581,1750301433164,-404.31326728,0.00021917,6]
[366521582,1750301433174,-460.0,0.00021917,6]
[366521583,1750301433184,-374.74332401,0.00021917,6]
[366521584,1750301433194,-460.0,0.00021917,6]
[366521585,1750301433204,-465.41392428,0.00021917,6]
[366521586,1750301433215,-460.0,0.00021917,6]
[366521587,1750301433224,-490.17,0.00021917,6]
[366521588,1750301433234,-460.0,0.00021917,6]
[366521589,1750301433245,-460.0,0.00021917,6]
[366521590,1750301433256,-341.85952458,0.00021917,6]
[366521591,1750301433266,-460.0,0.00021917,6]
[366521592,1750301433276,-460.69898661,0.00021917,6]
[366521593,1750301433286,-460.0,0.00021917,6]
[366521594,1750301433295,-547.76057301,0.00021917,6]
[366521595,1750301433305,-450.0,0.00021917,6]
[366521596,1750301433315,-460.0,0.00021917,6]
[366521597,1750301433326,-460.0,0.00021917,6]
[366521598,1750301433335,-236.38559771,0.00021917,6]
[366521599,1750301433345,-386.46440306,0.00021917,6]
[366521600,1750301433354,-460.0,0.00021917,6]
[366521601,1750301433364,-433.4971624,0.00021917,6]
[366521602,1750301433375,-460.0,0.00021917,6]
[366521603,1750301433385,-460.0,0.00021917,6]
[366521604,1750301433394,-460.0,0.00021917,6]
[366521605,1750301433404,-460.0,0.00021917,6]
[366521606,1750301433414,-490.0,0.00021917,6]
[366521607,1750301433424,-460.0,0.00021917,6]
[366521608,1750301433434,-460.0,0.00021917,6]
[366521609,1750301433443,-460.0,0.00021917,6]
[366521610,1750301433453,-430.0,0.00021917,6]
[366521611,1750301433464,-460.0,0.00021917,6]
[366521612,1750301433475,-460.0,0.00021917,6]
[366521613,1750301433485,-460.0,0.00021917,6]
[366521614,1750301433494,-430.0,0.00021917,6]
[366521615,1750301433504,-443.9801748,0.00021917,6]
[366521616,1750301433513,-460.0,0.00021917,6]
[366521617,1750301433522,-460.0,0.00021917,6]
[366521618,1750301433532,-500.0,0.00021917,6]
[366521619,1750301433541,-525.77951924,0.00021917,6]
[366521620,1750301433551,-465.95861752,0.00021917,6]
[366521621,1750301433560,-460.0,0.00021917,6]
[366521622,1750301433570,-460.0,0.00021917,6]
[366521623,1750301433579,-460.0,0.00021917,6]
[366521624,1750301433589,-471.95456338,0.00021917,6]
[366521625,1750301433598,-432.23785448,0.00021917,6]
[366521626,1750301433608,-460.0,0.00021917,6]
[366521627,1750301433618,-464.54805531,0.00021917,6]
[366521628,1750301433629,-305.37752194,0.00021917,6]
[366521629,1750301433638,-460.0,0.00021917,6]
[366521630,1750301433648,-460.0,0.00021917,6]
[366521631,1750301433657,-472.71755691,0.00021917,6]
[366521632,1750301433667,-460.0,0.00021917,6]
[366521633,1750301433676,-460.0,0.00021917,6]
[366521634,1750301433685,-462.92343068,0.00021917,6]
[366521635,1750301433695,-460.0,0.00021917,6]
[366521636,1750301433704,-250.0,0.00021917,6]
[366521637,1750301433714,-581.43965093,0.00021917,6]
[366521638,1750301433723,-438.95429488,0.00021917,6]
[366521639,1750301433733,-457.69644545,0.00021917,6]
[366521640,1750301433743,-460.0,0.00021917,6]
[366521641,1750301433752,-464.68447741,0.00021917,6]
[366521642,1750301433761,-460.0,0.00021917,6]
[366521643,1750301433771,-403.74387078,0.00021917,6]
[366521644,1750301433780,-460.0,0.00021917,6]
[366521645,1750301433789,-460.0,0.00021917,6]
[366521646,1750301433798,-401.11965797,0.00021917,6]
[366521647,1750301433807,-460.85252506,0.00021917,6]
[366521648,1750301433816,-400.44991057,0.00021917,6]
[366521649,1750301433826,-460.7818278,0.00021917,6]
[366521650,1750301433835,-460.0,0.00021917,6]
[366521651,1750301433845,-500.0,0.00021917,6]
[366521652,1750301433854,-502.98667921,0.00021917,6]
[366521653,1750301433863,-465.76446079,0.00021917,6]
[366521654,1750301433873,-460.0,0.00021917,6]
[366521655,1750301433883,-460.0,0.00021917,6]
[366521656,1750301433892,-464.75064642,0.00021917,6]
[366521657,1750301433902,-460.0,0.00021917,6]
[366521658,1750301433911,-463.97303347,0.00021917,6]
[366521659,1750301433920,-460.0,0.00021917,6]
[366521660,1750301433930,-460.0,0.00021917,6]
[366521661,1750301433940,-463.48467762,0.00021917,6]
[366521662,1750301433949,-430.0,0.00021917,6]
[366521663,1750301433959,-463.93753095,0.00021917,6]
[366521664,1750301433968,-506.12181722,0.00021917,6]
[366521665,1750301433978,-460.0,0.00021917,6]
[366521666,1750301433987,-460.0,0.00021917,6]
[366521667,1750301433997,-404.94186466,0.00021917,6]
[366521668,1750301434006,-430.0,0.00021917,6]
[366521669,1750301434015,-460.0,0.00021917,6]
[366521670,1750301434025,-453.19469808,0.00021917,6]
[366521671,1750301434035,-500.0,0.00021917,6]
[366521672,1750301434044,-500.0,0.00021917,6]
[366521673,1750301434054,-500.0,0.00021917,6]
[366521674,1750301434064,-500.0,0.00021917,6]
[366521675,1750301434076,-460.0,0.00021917,6]
[366521676,1750301434086,-500.0,0.00021917,6]
[366521677,1750301434095,-438.04630413,0.00021917,6]
[366521678,1750301434106,-460.0,0.00021917,6]
[366521679,1750301434117,-401.42458985,0.00021917,6]
[366521680,1750301434127,-460.0,0.00021917,6]
[366521681,1750301434136,-460.0,0.00021917,6]
[366521682,1750301434147,-460.0,0.00021917,6]
[366521683,1750301434157,-460.0,0.00021917,6]
[366521684,1750301434167,-435.1526284,0.00021917,6]
[366521685,1750301434176,-452.02812653,0.00021917,6]
[366521686,1750301434186,-413.6095168,0.00021917,6]
[366521687,1750301434196,-403.85118614,0.00021917,6]
[366521688,1750301434207,-460.0,0.00021917,6]
[366521689,1750301434217,-460.0,0.00021917,6]
[366521690,1750301434227,-438.76708975,0.00021917,6]
[366521691,1750301434236,-457.32790071,0.00021917,6]
[366521692,1750301434246,-460.0,0.00021917,6]
[366521693,1750301434256,-460.0,0.00021917,6]
[366521694,1750301434266,-460.0,0.00021917,6]
[366521695,1750301434276,-549.16472761,0.00021917,6]
[366521696,1750301434285,-460.0,0.00021917,6]
[366521697,1750301434294,-446.83912161,0.00021917,6]
[366521698,1750301434304,-460.0,0.00021917,6]
[366521699,1750301434314,-376.27599042,0.00021917,6]
[366521700,1750301434324,-468.82965598,0.00021917,6]
[366521701,1750301434334,-444.23803595,0.00021917,6]
[366521702,1750301434344,-460.0,0.00021917,6]
[366521703,1750301434354,-446.29134718,0.00021917,6]
[366521704,1750301434363,-430.0,0.00021917,6]
[366521705,1750301434374,-460.0,0.00021917,6]
[366521706,1750301434383,-444.80981411,0.00021917,6]
[366521707,1750301434392,-460.0,0.00021917,6]
[366521708,1750301434402,-460.0,0.00021917,6]
[366521709,1750301434411,-460.0,0.00021917,6]
[366521710,1750301434421,-460.0,0.00021917,6]
[366521711,1750301434431,-460.0,0.00021917,6]
[366521712,1750301434440,-460.0,0.00021917,6]
[366521713,1750301434449,-460.0,0.00021917,6]
[366521714,1750301434460,-514.02237013,0.00021917,6]
[366521715,1750301434469,-435.60108467,0.00021917,6]
[366521716,1750301434480,-435.0920666,0.00021917,6]
[366521717,1750301434490,-460.0,0.00021917,6]
[366521718,1750301434500,-434.50545168,0.00021917,6]
[366521719,1750301434510,-466.49750726,0.00021917,6]
[366521720,1750301434519,-413.2593738,0.00021917,6]
[366521721,1750301434529,-460.0,0.00021917,6]
[366521722,1750301434538,-460.0,0.00021917,6]
[366521723,1750301434547,-450.04028233,0.00021917,6]
[366521724,1750301434557,-465.66178869,0.00021917,6]
[366521725,1750301434566,-421.74166866,0.00021917,6]
[366521726,1750301434575,-462.7147795,0.00021917,6]
[366521727,1750301434585,-460.0,0.00021917,6]
[366521728,1750301434594,-460.0,0.00021917,6]
[366521729,1750301434603,-460.0,0.00021917,6]
[366521730,1750301434612,-460.0,0.00021917,6]
[366521731,1750301434621,-210.39235178,0.00021917,6]
[366521732,1750301434630,-460.0,0.00021917,6]
[366521733,1750301434639,-661.8,0.00021917,6]
[366521734,1750301434648,-487.16696393,0.00021917,6]
[366521735,1750301434658,-460.0,0.00021917,6]
[366521736,1750301434667,-460.0,0.00021917,6]
[366521737,1750301434677,-465.82875545,0.00021917,6]
[366521738,1750301434687,-460.0,0.00021917,6]
[366521739,1750301434697,-461.54249329,0.00021917,6]
[366521740,1750301434709,-461.10482566,0.00021917,6]
[366521741,1750301434718,-430.0,0.00021917,6]
[366521742,1750301434728,-460.0,0.00021917,6]
[366521743,1750301434738,-460.0,0.00021917,6]
[366521744,1750301434748,-453.70973792,0.00021917,6]
[366521745,1750301434757,-788.73,0.00021917,6]
[366521746,1750301434767,-460.0,0.00021917,6]
[366521747,1750301434777,-460.0,0.00021917,6]
[366521748,1750301434787,-460.0,0.00021917,6]
[366521749,1750301434797,-460.0,0.00021917,6]
[366521750,1750301434806,-438.14025549,0.00021917,6]
[366521751,1750301434816,-439.65835626,0.00021917,6]
[366521752,1750301434825,-452.414988,0.00021917,6]
[366521753,1750301434835,-462.64428984,0.00021917,6]
[366521754,1750301434845,-430.0,0.00021917,6]
[366521755,1750301434855,-433.77983632,0.00021917,6]
[366521756,1750301434864,-453.65743163,0.00021917,6]
[366521757,1750301434873,-460.0,0.00021917,6]
[366521758,1750301434882,-460.0,0.00021917,6]
[366521759,1750301434892,-476.70761035,0.00021917,6]
[366521760,1750301434901,-460.0,0.00021917,6]
[366521761,1750301434911,-460.0,0.00021917,6]
[366521762,1750301434920,-1237.83,0.00021917,6]
[366521763,1750301434930,-463.61217091,0.00021917,6]
[366521764,1750301434939,-354.72777928,0.00021917,6]
[366521765,1750301434949,-444.48543259,0.00021917,6]
[366521766,1750301434960,-358.78244192,0.00021917,6]
[366521767,1750301434969,-233.24355523,0.00021917,6]
[366521768,1750301434978,-460.0,0.00021917,6]
[366521769,1750301434988,-499.37569391,0.00021917,6]
[366521770,1750301434997,-2477.71,0.00021917,6]
[366521771,1750301435007,-453.9084431,0.00021917,6]
[366521772,1750301435018,-460.0,0.00021917,6]
[366521773,1750301435028,-500.0,0.00021917,6]
[366521774,1750301435037,-500.0,0.00021917,6]
[366521775,1750301435048,-645.34437065,0.00021917,6]
[366521776,1750301435058,-460.0,0.00021917,6]
[366521777,1750301435067,-1760.99,0.00021917,6]
[366521778,1750301435080,-460.0,0.00021917,6]
[366521779,1750301435089,-589.21893095,0.00021917,6]
[366521780,1750301435099,-460.0,0.00021917,6]
[366521781,1750301435108,-460.0,0.00021917,6]
[366521782,1750301435118,-460.0,0.00021917,6]
[366521783,1750301435129,-1186.47,0.00021917,6]
[366521784,1750301435139,-460.0,0.00021917,6]
[366521785,1750301435149,-460.0,0.00021917,6]
[366521786,1750301435167,-460.0,0.00021917,6]
[366521787,1750301435186,-460.0,0.00021917,6]
[366521788,1750301435196,-803.4,0.00021917,6]
[366521789,1750301435206,-466.73127553,0.00021917,6]
[366521790,1750301435216,-390.0,0.00021917,6]
[366521791,1750301435225,-460.0,0.00021917,6]
[366521792,1750301435235,-460.0,0.00021917,6]
[366521793,1750301435245,-400.0,0.00021917,6]
[366521794,1750301435255,-460.0,0.00021917,6]
[366521795,1750301435265,-460.0,0.00021917,6]
[366521796,1750301435275,-460.0,0.00021917,6]
[366521797,1750301435284,-460.0,0.00021917,6]
[366521798,1750301435299,-460.0,0.00021917,6]
[366521799,1750301435309,-370.0,0.00021917,6]
[366521800,1750301435318,-460.0,0.00021917,6]
[366521801,1750301435328,-400.0,0.00021917,6]
[366521802,1750301435338,-460.0,0.00021917,6]
[366521803,1750301435450,-469.97255165,0.00021917,6]
[366521804,1750301435461,-460.0,0.00021917,6]
[366521805,1750301435469,-350.0,0.00021917,6]
[366521806,1750301435479,-460.0,0.00021917,6]
[366521807,1750301435489,-460.0,0.00021917,6]
[366521808,1750301435498,-460.0,0.00021917,6]
[366521809,1750301435507,-460.0,0.00021917,6]
[366521810,1750301435517,-460.0,0.00021917,6]
[366521811,1750301435526,-444.26914125,0.00021917,6]
[366521812,1750301435535,-460.0,0.00021917,6]
[366521813,1750301435545,-450.37429915,0.00021917,6]
[366521814,1750301435554,-460.0,0.00021917,6]
[366521815,1750301435563,-460.0,0.00021917,6]
[366521816,1750301435572,-463.21,0.00021917,6]
[366521817,1750301435582,-500.0,0.00021917,6]
[366521818,1750301435592,-460.0,0.00021917,6]
[366521819,1750301435601,-524.26,0.00021917,6]
[366521820,1750301435611,-525.85231248,0.00021917,6]
[366521821,1750301435621,-569.69,0.00021917,6]
[366521822,1750301435630,-460.0,0.00021917,6]
[366521823,1750301435640,-460.0,0.00021917,6]
[366521824,1750301435649,-460.0,0.00021917,6]
[366521825,1750301435658,-460.0,0.00021917,6]
[366521826,1750301435667,-510.59,0.00021917,6]
[366521827,1750301435677,-706.08,0.00021917,6]
[366521828,1750301435686,-273.05323477,0.00021917,6]
[366521829,1750301435695,-460.0,0.00021917,6]
[366521830,1750301435704,-460.0,0.00021917,6]
[366521831,1750301435713,-460.0,0.00021917,6]
[366521832,1750301435722,-206.87,0.00021917,6]
[366521833,1750301435731,-370.0,0.00021917,6]
[366521834,1750301435741,-460.0,0.00021917,6]
[366521835,1750301435751,-33.1968763,0.00021917,6]
[366521836,1750301435770,-426.8031237,0.00021917,6]
[366521837,1750301435779,-460.0,0.00021917,6]
[366521838,1750301435789,-460.0,0.00021917,6]
[366521839,1750301435798,-460.0,0.00021917,6]
[366521840,1750301435807,-460.0,0.00021917,6]
[366521841,1750301435818,-460.0,0.00021917,6]
[366521842,1750301435827,-462.55923647,0.00021917,6]
[366521843,1750301435837,-460.0,0.00021917,6]
[366521844,1750301435847,-460.0,0.00021917,6]
[366521845,1750301435857,-460.0,0.00021917,6]
[366521846,1750301435867,-460.0,0.00021917,6]
[366521847,1750301435876,-460.0,0.00021917,6]
[366521848,1750301435886,-450.0,0.00021917,6]
[366521849,1750301435895,-460.0,0.00021917,6]
[366521850,1750301435905,-460.0,0.00021917,6]
[366521851,1750301435914,-420.0,0.00021917,6]
[366521852,1750301435923,-460.0,0.00021917,6]
[366521853,1750301435933,-460.0,0.00021917,6]
[366521854,1750301435943,-460.0,0.00021917,6]
[366521855,1750301435952,-439.2750211,0.00021917,6]
[366521856,1750301435962,-464.51193442,0.00021917,6]
[366521857,1750301435971,-461.91843758,0.00021917,6]
[366521858,1750301435980,-460.0,0.00021917,6]
[366521859,1750301435989,-460.0,0.00021917,6]
[366521860,1750301435999,-460.0,0.00021917,6]
[366521861,1750301436008,-460.0,0.00021917,6]
[366521862,1750301436018,-460.0,0.00021917,6]
[366521863,1750301436028,-460.0,0.00021917,6]
[366521864,1750301436038,-460.0,0.00021917,6]
[366521865,1750301436048,-230.0,0.00021917,6]
[366521866,1750301436057,-457.8229701,0.00021917,6]
[366521867,1750301436071,-2.1770299,0.00021917,6]
[366521868,1750301436088,-364.35246079,0.00021917,6]
[366521869,1750301436104,-95.64753921,0.00021917,6]
[366521870,1750301436114,-460.0,0.00021917,6]
[366521871,1750301436125,-420.0,0.00021917,6]
[366521872,1750301436135,-463.92780534,0.00021917,6]
[366521873,1750301436144,-451.09456013,0.00021917,6]
[366521874,1750301436155,-300.0,0.00021917,2]
[366521875,1750301436164,-460.0,0.00021917,6]
[366521876,1750301436174,-482.65116967,0.00021917,6]
[366521877,1750301436183,-391.77451534,0.00021917,6]
[366521878,1750301436193,-468.38650104,0.00021917,6]
[366521879,1750301436202,-505.39640988,0.00021917,2]
[366521880,1750301436211,-460.0,0.00021917,6]
[366521881,1750301436221,-462.99488322,0.00021917,6]
[366521882,1750301436230,-460.0,0.00021917,6]
[366521883,1750301436240,-460.0,0.00021917,6]
[366521884,1750301436249,-460.0,0.00021917,6]
[366521885,1750301436259,-1529.08,0.00021917,6]
[366521886,1750301436269,-460.0,0.00021917,6]
[366521887,1750301436278,-372.79521497,0.00021917,6]
[366521888,1750301436287,-460.0,0.00021917,6]
[366521889,1750301436296,-913.22,0.00021917,6]
[366521890,1750301436305,-290.0,0.00021917,6]
[366521891,1750301436315,-460.0,0.00021917,6]
[366521892,1750301436325,-460.0,0.00021917,6]
[366521893,1750301436334,-460.0,0.00021917,6]
[366521894,1750301436344,-460.0,0.00021917,6]
[366521895,1750301436353,-315.52066083,0.00021917,6]
[366521896,1750301436363,-460.0,0.00021917,6]
[366521897,1750301436372,-460.0,0.00021917,6]
[366521898,1750301436382,-1746.6,0.00021917,6]
[366521899,1750301436392,-460.0,0.00021917,6]
[366521900,1750301436401,-460.0,0.00021917,6]
[366521901,1750301436410,-440.0,0.00021917,6]
[366521902,1750301436420,-1371.44,0.00021917,6]
[366521903,1750301436429,-460.0,0.00021917,6]
[366521904,1750301436439,-504.91035382,0.00021973,2]
[366521905,1750301436449,-500.607487,0.00021973,2]
[366521906,1750301436459,-500.0,0.00021973,2]
[366521907,1750301436469,-464.10445723,0.00021973,2]
[366521908,1750301436479,-511.91922401,0.00021973,2]
[366521909,1750301436488,-500.0,0.00021973,2]
[366521910,1750301436498,-500.0,0.00021973,2]
[366521911,1750301436508,-166.0,0.00022,2]
[366521912,1750301436517,-447.35543612,0.00022191,6]
[366521913,1750301436527,-348.58149068,0.00022191,6]
[366521914,1750301436536,-460.0,0.00022191,6]
[366521915,1750301436546,-347.46015939,0.00022191,6]
[366521916,1750301436555,-464.39150239,0.00022191,6]
[366521917,1750301436564,-408.46321594,0.00022191,6]
[366521918,1750301436573,-460.0,0.00022191,6]
[366521919,1750301436583,-467.84047614,0.00022191,6]
[366521920,1750301436592,-460.0,0.00022191,6]
[366521921,1750301436602,-467.73322723,0.00022191,6]
[366521922,1750301436611,-460.0,0.00022191,6]
[366521923,1750301436620,-440.49483576,0.00022191,6]
[366521924,1750301436629,-466.75434873,0.00022191,6]
[366521925,1750301436638,-444.05047751,0.00022191,6]
[366521926,1750301436647,-271.8330426,0.00022191,6]
[366521927,1750301436657,-483.66018528,0.00022191,6]
[366521928,1750301436666,-460.0,0.00022191,6]
[366521929,1750301436675,-404.05295829,0.00022191,6]
[366521930,1750301436684,-467.31384278,0.00022191,6]
[366521931,1750301436694,-460.0,0.00022191,6]
[366521932,1750301436703,-460.0,0.00022191,6]
[366521933,1750301436712,-460.0,0.00022191,6]
[366521934,1750301436721,-321.24519066,0.00022191,6]
[366521935,1750301436731,-460.0,0.00022191,6]
[366521936,1750301436740,-375.63612537,0.00022191,6]
[366521937,1750301436749,-460.0,0.00022191,6]
[366521938,1750301436759,-460.0,0.00022191,6]
[366521939,1750301436770,-460.0,0.00022191,6]
[366521940,1750301436784,-160.0,0.00022191,6]
[366521941,1750301436798,-460.0,0.00022191,6]
[366521942,1750301436812,-490.17,0.00022191,6]
[366521943,1750301436826,-276.01674162,0.00022191,6]
[366521944,1750301436837,-460.0,0.00022191,6]
[366521945,1750301436848,-460.0,0.00022191,6]
[366521946,1750301436862,-460.0,0.00022191,6]
[366521947,1750301436874,-460.0,0.00022191,6]
[366521948,1750301436886,-460.0,0.00022191,6]
[366521949,1750301436899,-460.0,0.00022191,6]
[366521950,1750301436911,-460.0,0.00022191,6]
[366521951,1750301436924,-460.0,0.00022191,6]
[366521952,1750301436936,-460.0,0.00022191,6]
[366521953,1750301436949,-460.0,0.00022191,6]
[366521954,1750301436961,-430.0,0.00022191,6]
[366521955,1750301436975,-460.0,0.00022191,6]
[366521956,1750301436988,-295.1518399,0.00022191,6]
[366521957,1750301436998,-472.03175633,0.00022191,6]
[366521958,1750301437010,-460.0,0.00022191,6]
[366521959,1750301437022,-460.0,0.00022191,6]
[366521960,1750301437033,-460.0,0.00022191,6]
[366521961,1750301437045,-340.0,0.00022191,6]
[366521962,1750301437058,-460.0,0.00022191,6]
[366521963,1750301437071,-407.75655446,0.00022191,6]
[366521964,1750301437084,-460.0,0.00022191,6]
[366521965,1750301437097,-439.67921954,0.00022191,6]
[366521966,1750301437107,-460.0,0.00022191,6]
[366521967,1750301437119,-469.78580083,0.00022191,6]
[366521968,1750301437131,-460.0,0.00022191,6]
[366521969,1750301437142,-460.0,0.00022191,6]
[366521970,1750301437155,-240.0,0.00022191,6]
[366521971,1750301437168,-460.0,0.00022191,6]
[366521972,1750301437180,-460.0,0.00022191,6]
[366521973,1750301437193,-460.0,0.00022191,6]
[366521974,1750301437206,-465.42713338,0.00022191,6]
[366521975,1750301437219,-354.25152981,0.00022191,6]
[366521976,1750301437233,-460.0,0.00022191,6]
[366521977,1750301437245,-661.8,0.00022191,6]
[366521978,1750301437259,-460.0,0.00022191,6]
[366521979,1750301437272,-460.0,0.00022191,6]
[366521980,1750301437282,-788.73,0.00022191,6]
[366521981,1750301437293,-460.0,0.00022191,6]
[366521982,1750301437303,-460.0,0.00022191,6]
[366521983,1750301437313,-460.0,0.00022191,6]
[366521984,1750301437324,-460.0,0.00022191,6]
[366521985,1750301437337,-460.0,0.00022191,6]
[366521986,1750301437349,-460.0,0.00022191,6]
[366521987,1750301437362,-1237.83,0.00022191,6]
[366521988,1750301437374,-460.0,0.00022191,6]
[366521989,1750301437384,-2477.71,0.00022191,6]
[366521990,1750301437396,-460.0,0.00022191,6]
[366521991,1750301437407,-460.0,0.00022191,6]
[366521992,1750301437418,-1760.99,0.00022191,6]
[366521993,1750301437430,-164.32,0.00022191,6]
[366521994,1750301437442,-1186.47,0.00022191,6]
[366521995,1750301437453,-460.0,0.00022191,6]
[366521996,1750301437463,-460.0,0.00022191,6]
[366521997,1750301437474,-460.0,0.00022191,6]
[366521998,1750301437484,-803.4,0.00022191,6]
[366521999,1750301437495,-460.0,0.00022191,6]
[366522000,1750301437505,-460.0,0.00022191,6]
[366522001,1750301437516,-460.0,0.00022191,6]
[366522002,1750301437529,-460.0,0.00022191,6]
[366522003,1750301437542,-600.08505204,0.00022191,6]
[366522004,1750301437554,-460.0,0.00022191,6]
[366522005,1750301437565,-190.04,0.00022191,6]
[366522006,1750301437575,-460.0,0.00022191,6]
[366522007,1750301437586,-460.0,0.00022191,6]
[366522008,1750301437597,-460.0,0.00022191,6]
[366522009,1750301437607,-460.0,0.00022191,6]
[366522010,1750301437618,-460.0,0.00022191,6]
[366522011,1750301437628,-460.0,0.00022191,6]
[366522012,1750301437639,-524.26,0.00022191,6]
[366522013,1750301437650,-569.69,0.00022191,6]
[366522014,1750301437660,-460.0,0.00022191,6]
[366522015,1750301437671,-460.0,0.00022191,6]
[366522016,1750301437682,-510.59,0.00022191,6]
[366522017,1750301437694,-706.08,0.00022191,6]
[366522018,1750301437705,-460.0,0.00022191,6]
[366522019,1750301437715,-460.0,0.00022191,6]
[366522020,1750301437726,-460.0,0.00022191,6]
[366522021,1750301437737,-460.0,0.00022191,6]
[366522022,1750301437749,-160.36,0.00022191,6]
[366522023,1750301437760,-460.0,0.00022191,6]
[366522024,1750301437771,-316.28705695,0.00022191,6]
[366522025,1750301437781,-460.0,0.00022191,6]
[366522026,1750301437792,-460.0,0.00022191,6]
[366522027,1750301437803,-460.0,0.00022191,6]
[366522028,1750301437815,-460.0,0.00022191,6]
[366522029,1750301437825,-460.0,0.00022191,6]
[366522030,1750301437836,-131.58541879,0.00022191,6]
[366522053,1750301440172,-460.0,0.00021917,6]
[366522054,1750301440182,-460.0,0.00021917,6]
[366522055,1750301440191,-465.43709273,0.00021917,6]
[366522056,1750301440200,-460.0,0.00021917,6]
[366522057,1750301440210,-420.0,0.00021917,6]
[366522058,1750301440220,-460.0,0.00021917,6]
[366522059,1750301440230,-460.0,0.00021917,6]
[366522060,1750301440240,-460.0,0.00021917,6]
[366522061,1750301440249,-328.41458121,0.00022191,6]
[366522062,1750301440259,-460.0,0.00022191,6]
[366522063,1750301440268,-460.0,0.00022191,6]
[366522064,1750301440278,-460.0,0.00022191,6]
[366522066,1750301440287,-410.0,0.00022191,6]
[366522068,1750301440297,-460.0,0.00022191,6]
[366522070,1750301440306,-460.0,0.00022191,6]
[366522072,1750301440315,-300.0,0.00022191,2]
[366522074,1750301440325,-460.0,0.00022191,6]
[366522076,1750301440334,-548.15,0.00022191,6]
[366522078,1750301440343,-460.0,0.00022191,6]
[366522080,1750301440352,-460.0,0.00022191,6]
[366522082,1750301440362,-1529.08,0.00022191,6]
[366522083,1750301440371,-460.0,0.00022191,6]